Cogmind - Beta 13 @@@ ROGUE MODE // 2024.05.03 @ 18:27:29 Player: Gabe+Kate4EVR Result: Destroyed by 07-ITP(R) with Subdweller Beam Cannon Performance ------------- Evolutions (0) 0 Regions Visited (3) 600 Robots Destroyed (32) 160 Value Destroyed (778) 778 Prototype IDs (0) 0 Alien Tech Used (0) 0 Bonus (0) 0 TOTAL SCORE: 1538 Bonus ------- None Cogmind --------- Core Integrity 0/250 Matter 145/300 Energy 190/200 System Corruption 0% Temperature Cool (9) Movement Rolling (95) Ox1 Location -10/Subcaves Parts ------- > --- POWER (1) -------- Subdweller Power Source > --- PROPULSION (2) --- Wheel Wheel > --- UTILITY (2) ------ Large Storage Unit Targeting Computer > --- WEAPON (2) ------- Makeshift Sword > --- INVENTORY (15) --- Ion Engine Makeshift Leg Wheel Wheel Subdweller Monowheel Medium Storage Unit Humpback High-capacity Matter Pod (200) Core Shielding Flamer Flamer Ripper Peak State ------------ > --- POWER ------------ Makeshift Power Source > --- PROPULSION ------- Makeshift Leg Wheel > --- UTILITY ---------- Medium Storage Unit Targeting Computer > --- WEAPON ----------- Grenade Launcher Grenade Launcher > --- INVENTORY -------- Ion Engine Wheel Wheel Wheel High-capacity Matter Pod Core Shielding Flamer Enhanced Flamer Makeshift Sword [Rating: 14] Favorites ----------- Power Improved Ion Engine Engine Improved Ion Engine Power Core Light Nuclear Core Propulsion Wheel Treads Light Treads Leg Aluminum Leg Wheel Wheel Utility Targeting Computer Device Improved Heat Sink Storage Medium Storage Unit Processor Targeting Computer Weapon Grenade Launcher Energy Gun Particle Gun Ballistic Gun Makeshift Shrapnel Gun Ballistic Cannon Light Cannon Launcher Grenade Launcher Special Weapon Flamer Slashing Weapon Makeshift Sword Build | -11 -10 -10 -10 ------- Run | Yrd Mat Min Sub Slots Evolved . | . . . . Power . | . . . . Propulsion . | . . . . Utility . | . . . . Weapon . | . . . . Parts Attached 42 | 6 6 16 14 Power 5 | 1 . 2 2 Engine 4 | 1 . 1 2 Core 1 | . . 1 . Reactor . | . . . . Propulsion 18 | 2 4 7 5 Treads 1 | . . 1 . Leg 5 | 2 . 2 1 Wheel 12 | . 4 4 4 Hover . | . . . . Flight . | . . . . Utility 6 | 1 1 3 1 Device 2 | . 1 1 . Storage 3 | 1 . 1 1 Processor 1 | . . 1 . Hackware . | . . . . Protection . | . . . . Artifact . | . . . . Weapon 13 | 2 1 4 6 Energy Gun 4 | 1 1 2 . Energy Cannon . | . . . . Ballistic Gun 3 | 1 . 1 1 Ballistic Cannon 1 | . . 1 . Launcher 2 | . . . 2 Special Weapon 2 | . . . 2 Impact Weapon . | . . . . Slashing Weapon 1 | . . . 1 Piercing Weapon . | . . . . Special Melee Weapon . | . . . . Unidentified Prototypes . | . . . . Parts Lost 12 | . . 5 7 Power 3 | . . 1 2 Propulsion 2 | . . 1 1 Utility 1 | . . 1 . Weapon 6 | . . 2 4 Highest Loss Streak 4 | . . 4 3 To Critical Strikes 1 | . . . 1 Average Slot Usage (%) 94 | . 90 97 94 Engine 11 | . 14 6 13 Core 1 | . . 7 . Leg 1 | . 21 . . Wheel 25 | . 2 26 27 Device 2 | . 9 7 . Storage 14 | . 14 14 14 Processor 10 | . . 6 14 Energy Gun 8 | . 22 14 4 Ballistic Gun 2 | . 5 1 2 Ballistic Cannon 4 | . . 12 1 Launcher 9 | . . . 14 Naked Turns . | . . . . Heaviest Build 31 | 13 15 23 31 Greatest Support 30 | 20 26 20 30 Greatest Overweight (x) 4 | . 4 2 2 Average Overweight (x) . | . . . . Largest Inventory Capacity 15 | 8 8 10 15 Average Capacity 11 | 7 8 9 13 Most Carried 15 | 6 8 10 15 Average Carried 10 | 3 7 9 11 Final Capacity 15 | 8 8 10 15 Final Carried 13 | 6 8 10 13 Class Distribution -------------------- 61% | Mutant 38% | Scavenger-Mutant Dominant Class ---------------- Mutant | -10/Materials Scavenger-Mutant | -10/Mines Mutant | -10/Subcaves Resources | -11 -10 -10 -10 ----------- Run | Yrd Mat Min Sub Matter Collected 1083 | 226 274 265 318 Remotely . | . . . . Salvage Created 729 | . 249 220 260 Parts 51 | . 14 22 15 Haulers Intercepted . | . . . . Recyclers Shooed . | . . . . Parts Field Recycled . | . . . . Retrieved Matter . | . . . . Parts Self-Destructed 8 | . . . 8 Prevented . | . . . . Kills | -11 -10 -10 -10 ------- Run | Yrd Mat Min Sub Combat Hostiles Destroyed 22 | . 4 6 12 Guns 13 | . 3 4 6 Cannons 4 | . . 2 2 AOE 5 | . 1 . 4 Classes Destroyed 9 | . 3 4 2 Worker 3 | . . 3 . Builder 2 | . 1 1 . Tunneler 2 | . . 2 . Mechanic 1 | . 1 . . Turret 2 | . . . 2 Swarmer 7 | . . 3 4 Grunt 6 | . 4 2 . Sentry 1 | . . 1 . Subdweller 8 | . . . 8 Best Kill Streak 4 | . 4 2 4 Combat Bots Only 4 | . 2 2 4 Max Kills in Single Turn 1 | . 1 1 1 Gunslinging . | . . . . Exploded 1 | . 1 . 1 Melee . | . . . . Uniques/NPCs Destroyed . | . . . . Combat | -11 -10 -10 -10 -------- Run | Yrd Mat Min Sub Hostile Shots Fired 138 | . 32 24 82 Missed 52 | . 16 4 32 Damage Taken 1250 | . 250 265 735 Core 270 | . 81 10 179 Absorbed by Shields . | . . . . Core Remaining (%) 100 | 100 . . . Volleys Fired 88 | . 19 30 39 Largest 2 | . 2 2 2 Hottest 165 | . 90 100 165 Shots Fired 163 | . 38 55 70 Gun 101 | . 38 32 31 Cannon 28 | . . 23 5 Launcher 28 | . . . 28 Special 6 | . . . 6 Kinetic 45 | . . 29 16 Thermal 70 | . 19 25 26 Explosive 28 | . . . 28 Electromagnetic 20 | . 19 1 . Robot Hit Streak 16 | . 5 15 16 Robot Miss Streak 3 | . 3 2 3 Penetration Max . | . . . . Secondary Targets 1 | . 1 . . Max Gunslinging Chain 1 | . 1 . . Shots Hit Robots 100 | . 25 37 38 Core Hits 60 | . 12 15 33 Critical Kills . | . . . . Critical Parts Destroyed . | . . . . Critical Strikes 2 | . 1 1 . Burn 2 | . 1 1 . Melee Attacks 1 | . . . 1 Impact . | . . . . Slashing 1 | . . . 1 Piercing . | . . . . Sneak Attacks . | . . . . Combat Hostiles . | . . . . Follow-up Attacks . | . . . . Damage Inflicted 1960 | . 408 586 966 Guns 1047 | . 335 266 446 Cannons 374 | . . 320 54 Explosions 457 | . 73 . 384 Melee 36 | . . . 36 Ramming . | . . . . Kinetic 679 | . . 356 323 Thermal 664 | . 226 215 223 Explosive 384 | . . . 384 Electromagnetic 197 | . 182 15 . Impact . | . . . . Slashing 36 | . . . 36 Piercing . | . . . . Highest Corruption . | . . . . Average Corruption . | . . . . Corruption Purged . | . . . . Corruption Blocked . | . . . . Overload Shots . | . . . . Overflow Damage 7 | . . . 7 Projectiles . | . . . . Explosions 7 | . . . 7 Melee . | . . . . Knockbacks 4 | . . 4 . Impact . | . . . . Kinetic 4 | . . 4 . Secondary . | . . . . Self-Inflicted Damage 173 | . 40 . 133 Shots 7 | . 1 . 6 Rammed . | . . . . Targets Rammed . | . . . . Kicked . | . . . . Crushed . | . . . . Highest Temperature 107 | . 90 107 32 Average Temperature 28 | . 36 27 15 Received Heat Transfer 432 | . 156 114 162 Siege Activations . | . . . . Robots Corrupted . | . . . . Combat Hostiles . | . . . . Parts Fried . | . . . . Impact Corruptions . | . . . . Robots Melted . | . . . . Combat Hostiles . | . . . . Parts Melted 4 | . 1 . 3 Heat Transferred 1938 | . 618 593 727 Parts Sabotaged . | . . . . Parts Stolen . | . . . . Parts Stripped . | . . . . Power Chain Reactions 1 | . 1 . . Alert | -11 -10 -10 -10 ------- Run | Yrd Mat Min Sub Peak Influence 175 | . 116 175 . Initial 45 | . . 45 . Average 50 | . 36 60 . Maximum Alert Level . | . . . . Low Security (%) 100 | 100 100 100 . Level 1 . | . . . . Level 2 . | . . . . Level 3 . | . . . . Level 4 . | . . . . Level 5 . | . . . . High Security . | . . . . Max Security . | . . . . Squads Dispatched . | . . . . Investigation . | . . . . Extermination . | . . . . Reinforcement . | . . . . Assault . | . . . . Garrison . | . . . . Intercept . | . . . . Searches Triggered . | . . . . Construction Impeded . | . . . . Haulers Reinforced . | . . . . Active Scanning Responses . | . . . . Cargo Convoy Interrupts . | . . . . Stealth | -11 -10 -10 -10 --------- Run | Yrd Mat Min Sub Distress Signals . | . . . . Communications Jammed . | . . . . Distress Signals . | . . . . Times Spotted 57 | . 7 6 44 Peak Tracking Total 3 | . 3 2 3 Tactical Retreats 4 | . . 1 3 Traps | -11 -10 -10 -10 ------- Run | Yrd Mat Min Sub Traps Triggered . | . . . . Indirectly . | . . . . Trap Hack Attempts . | . . . . Triggered . | . . . . Disarmed . | . . . . Reprogrammed . | . . . . Reused . | . . . . Traps Extracted . | . . . . Installed . | . . . . Triggered . | . . . . Machines | -11 -10 -10 -10 ---------- Run | Yrd Mat Min Sub Machines Disabled 3 | . . . 3 Max in Single Turn 2 | . . . 2 Machines Repaired . | . . . . Machines Dismantled . | . . . . Machines Sabotaged . | . . . . Overloaded Fab Kills . | . . . . Hacking | -11 -10 -10 -10 --------- Run | Yrd Mat Min Sub Machines Accessed 2 | . 2 . . Terminals 1 | . 1 . . Fabricators . | . . . . Repair Stations . | . . . . Recycling Units 1 | . 1 . . Scanalyzers . | . . . . Garrison Access . | . . . . Total Hacks 3 | . 3 . . Successful 2 | . 2 . . Failed 1 | . 1 . . Catastrophic . | . . . . Database Lockouts . | . . . . Manual 1 | . 1 . . Terminals 1 | . 1 . . Fabricators . | . . . . Repair Stations . | . . . . Recycling Units 2 | . 2 . . Scanalyzers . | . . . . Garrison Access . | . . . . Terminal Hacks . | . . . . Fabricator Hacks . | . . . . Repair Station Hacks . | . . . . Recycling Unit Hacks 2 | . 2 . . Report Inventory 1 | . 1 . . Retrieve Components 1 | . 1 . . Scanalyzer . | . . . . Garrison Access Hacks . | . . . . Unauthorized Hacks . | . . . . Terminals . | . . . . Fabricators . | . . . . Repair Stations . | . . . . Recycling Units . | . . . . Scanalyzers . | . . . . Garrison Access . | . . . . Data Cores Recovered . | . . . . Used . | . . . . Hacking Detections . | . . . . Full Trace Events . | . . . . Feedback Events . | . . . . Feedback Blocked . | . . . . Robot Schematics Acquired . | . . . . Robots Built . | . . . . Authchips . | . . . . Time . | . . . . Total Robot Build Rating . | . . . . Part Schematics Acquired . | . . . . Parts Built . | . . . . Authchips . | . . . . Time . | . . . . Total Part Build Rating . | . . . . Parts Repaired . | . . . . Time . | . . . . Parts Recycled . | . . . . Recycled Matter . | . . . . Retrieved Matter . | . . . . Retrieved Components 3 | . 3 . . Parts Scanalyzed . | . . . . Part Schematics Acquired . | . . . . Parts Damaged . | . . . . Bothacking | -11 -10 -10 -10 ------------ Run | Yrd Mat Min Sub Used RIF Installer . | . . . . Robots Hacked . | . . . . Non-combat . | . . . . Combat . | . . . . Robot Hacks Applied . | . . . . Relay Couplers Released . | . . . . Fabnet Peak Effective % . | . . . . Robots Rewired . | . . . . Allies Hacked . | . . . . Hacks Repelled . | . . . . Allies | -11 -10 -10 -10 -------- Run | Yrd Mat Min Sub Total Allies . | . . . . Largest Group . | . . . . Highest-Rated Group . | . . . . Highest-Rated Ally . | . . . . Total Orders . | . . . . Ally Attacks . | . . . . Total Damage . | . . . . Kills . | . . . . Allies Corrupted . | . . . . Allies Melted . | . . . . Intel | -11 -10 -10 -10 ------- Run | Yrd Mat Min Sub Robot Analysis Total . | . . . . Derelict Logs Recovered 2 | . . 1 1 Drone Launches . | . . . . Drone Recoveries . | . . . . Exploration | -11 -10 -10 -10 ------------- Run | Yrd Mat Min Sub Turns Passed 2816 | 84 216 722 1794 Spaces Moved 2422 | 59 113 570 1680 Core 4 | 2 2 . . Treads . | . . . . Legs 163 | 57 99 6 1 Wheels 2255 | . 12 564 1679 Hover . | . . . . Flight . | . . . . Fastest Speed 50 | 50 80 80 80 Average Speed 97 | 117 118 95 95 Slowest Speed 260 | 120 250 260 140 Overloaded Moves . | . . . . Propulsion Burnouts . | . . . . Robots Hopped . | . . . . Cave-ins Triggered . | . . . . Exploration Rate (%) 50 | 3 26 83 88 Regions Visited 3 Branch Regions 2 Pre-discovered Areas 1 | . . . 1 Known Exits Taken . | . . . . Unknown Exits Taken 3 | 1 1 1 . Scrap Searched 11 | . . 2 9 Spaces Dug . | . . . . Terrain Destroyed 103 | . 5 . 98 Melee . | . . . . Projectile . | . . . . AOE 103 | . 5 . 98 Terrain Rammed . | . . . . Walls Destroyed . | . . . . Machines Disabled . | . . . . Actions | -11 -10 -10 -10 --------- Run | Yrd Mat Min Sub Total 2711 | 70 157 700 1784 Wait 93 | . 12 46 35 Move 2419 | 58 112 569 1680 Hop . | . . . . Pick Up 33 | 6 2 17 8 Fast Attach 25 | 6 4 10 5 Attach 5 | . . 2 3 Detach 1 | . 1 . . Swap 12 | . 2 4 6 Drop 34 | . 5 22 7 Fire 88 | . 19 30 39 Melee 1 | . . . 1 Ram . | . . . . Kick . | . . . . Crush . | . . . . Escape Stasis . | . . . . Rewire . | . . . . Trap . | . . . . Miscellaneous . | . . . . Route ------- -11/Scrapyard -10/Materials -10/Mines (discovered 2 exits: [*Mat] / [*Sub]) -10/Subcaves (discovered 3 exits: [*Mat x2] / [*Rec]) History --------- Turn | Location | Event 26 | -11/Scrapyard | Discovered new exit (range 16) 85 | -11/Scrapyard | Entered Materials 219 | -10/Materials | Discovered new exit (range 14) 301 | -10/Materials | Entered Mines 327 | -10/Mines | Build established: Mutant 362 | -10/Mines | Lost 4 parts (1p1u2w) 447 | -10/Mines | YI-UF0 nonchalantly dropped a Grenade Launcher on the ground 494 | -10/Mines | A weapon hastily lodged in a ceiling crevice suddenly fell to the ground 631 | -10/Mines | Build established: Scavenger-Mutant 672 | -10/Mines | Learned Materials garrison access intel 689 | -10/Mines | Joined a pair of Derelicts in attacking an 0b10 outpost 954 | -10/Mines | Discovered new exit (range 15) 970 | -10/Mines | Discovered new exit (range 14) 991 | -10/Mines | Build established: Mutant 1023 | -10/Mines | Entered Subcaves 1519 | -10/Subcaves | Learned location of Zion (-6) 1519 | -10/Subcaves | Met a Zionite searching for "candidates" 1542 | -10/Subcaves | Core integrity fell below 50% 1618 | -10/Subcaves | Discovered new exit (range 10) 1655 | -10/Subcaves | Lost 3 parts (1p1n1w) 1943 | -10/Subcaves | Build established: Scavenger-Mutant 2000 | -10/Subcaves | Discovered new exit (range 5) 2026 | -10/Subcaves | Core integrity fell below 20% 2136 | -10/Subcaves | Discovered new exit (range 12) 2166 | -10/Subcaves | A swath of the cavern ceiling suddenly collapsed 2269 | -10/Subcaves | Build established: Mutant 2704 | -10/Subcaves | Build established: Scavenger-Mutant 2803 | -10/Subcaves | A Subdweller sparked back to life 2803 | -10/Subcaves | A Subdweller sparked back to life 2803 | -10/Subcaves | A Subdweller sparked back to life 2817 | -10/Subcaves | Destroyed by 07-ITP(R) with Subdweller Beam Cannon Last Messages --------------- 02633_ Searching scrap... 02633_ Found Mak. Spear. 02633_ Found 26 Matter. 02634_ Searching scrap... 02634_ Found Sub. Beam Cannon. 02634_ Found Humpback. 02634_ Found 17 Matter. 02635_ Acquired 17 matter. 02637_ Searching scrap... 02637_ Found Sub. Beam Cannon. 02637_ Found 27 Matter. 02638_ Acquired 27 matter. 02638_ Acquired 26 matter. 02641_ Acquired Humpback. 02803_ 07-ITP(R) creaks and sparks as it begins to move. 02803_ 8W-W69(R) creaks and sparks as it begins to move. 02803_ FP-4HA(R) creaks and sparks as it begins to move. 02804_ Critical hit (Destroy). 02804_ Grenade Launcher destroyed. 02815_ Enh. Flamer destroyed. Map ----- +----------------------------------------------------+ | ?????????????????????????????????????????????????? | | ?????????????????????????????????????????????????? | | ?????????????????????????????????###?????????????? | | ???????????????????????????#????## ?????????????? | | ??????????????????????????## ### ?#####??????## | | ??????????????????????????? ## ######## | | ????????????????????????????? ## ## | | ??????????????????????????????????# | | ???????????????????????????????????# | | ???????????????????????????????????# ### ## | | ??????????????????????????????????## #?###### | | ??????????????????????????????????# #?????# | | ??????????????????????????????????# #????# | | ???????????????????????????????#### #????## | | ?????????????????###??????????## ####??## | | ???????????????### ##?######??# ###?## | | ??????????????## ### $& #??# ##?## | | ??????????????# ## ""#?## #??## | | ??????????????# ## " #?# #???## | | ??????????????# #<& ### #???? | | ?????????????## < # ## ##### | | ????????????## " #### # " | | ????????????# ### ##??##### ### | | ????????????# #?## ## #????????###### | | ????????????#####??# RR######???????????# | | ???????????????????# @###?????????????# < | | ???????????????????# ##????????????# | | ???????????????????## #???????????# | | ????????????????????## ####???????????## # | | ?????????????????????# ####????????????# | | ?????????????????????# #????????????##### # | | ????????????????????##### #????????????????###? | | ????????????????????# ### #???????????????????? | | ???????????????###??# #???????????????????? | | ???????????????# #?# ##???????????????????? | | ???????????????# #?## ##???????????????????? | | ??????????????## ##?#### #???????????????????? | | ?????????????## ##?### #???????????????????? | | ?????????????# ### #???????????????????? | | ?????????????#### #???????????????????? | | ????????????## ## #???????????????????? | | ??????##????# ## ## #???????????????????? | | ?????## ##### ####### #???????????????????? | | ?????# ####### #??????????????????? | | ?????# ## #??????????????????? | | ?????## ##?# ##??????????????????? | | ??????# ######???????????????????? | | ??????# ## #?????????????????????? | | ?????# ### #?????????????????????? | | ?????## #### # ##????????????????????? | +----------------------------------------------------+ Best States ------------- Heat Dissipation 39 Energy Generation 15 Energy Capacity 265 Matter Stores 300 Matter Capacity 300 Sight Range 16 Terrain Scan Density 10 Evasion (%) 55 Targeting Accuracy 5 Item Schematics ----------------- None Robot Schematics ------------------ None Fabricated ------------ Nothing Alien Tech Used ----------------- None Achievements -------------- None Challenges ------------ None Game ------ Seed BladeTachyonFacilitator Manual? 0 Play Time 00:18:45 Cumulative 145.4 hours Start 2024.05.03 @ 18:08:38 End 2024.05.03 @ 18:27:29 Sessions 1 Manual Loads 0 Difficulty Rogue Special Mode None Game No. 293 Rogue 293 Adventurer 0 Explorer 0 Win Type - Total 0 Types 0/0/0/0/0/0/0/0/0 Lore% 37 Gallery% 57 Achievement% 39 Wizard Run 0 Options --------- Layout 0 ASCII 0 Keyboard 1 Movement Numpad Keybinds 0 Fullscreen 2 Font 18/X11 Map View 76x50 Zoom Use 0% Tactical HUD 1 Map Filters NONE Filters NONE Steam 1 RUN: 8cee52a0-655f-49e8-86d2-32d401a23dbd